Cogmind - Beta 15 @@@ ROGUE MODE // 2025.05.17 @ 14:49:37 Player: Cess183 Result: Destroyed by G-47 Trooper with Particle Gun Performance ------------- Evolutions (2) 1000 Regions Visited (3) 600 Robots Destroyed (65) 325 Value Destroyed (1596) 1596 Prototype IDs (0) 0 Alien Tech Used (0) 0 Bonus (0) 0 TOTAL SCORE: 3521 Bonus ------- None Cogmind --------- Core Integrity 0/550 Matter 206/300 Energy 100/100 System Corruption 10% Temperature Cool (19) Movement Core (700) Ox13 Location -8/Materials Parts ------- > --- POWER (1) -------- (None) > --- PROPULSION (4) --- (None) > --- UTILITY (3) ------ High-capacity Storage Unit Visual Processing Unit > --- WEAPON (3) ------- (None) > --- INVENTORY (20) --- Terrain Scan Processor Seismic Detector Targeting Computer Targeting Computer Targeting Computer System Restoration Module Peak State ------------ > --- POWER ------------ Light Nuclear Core > --- PROPULSION ------- Wheel Compact Wheel Armored Wheel Armored Wheel > --- UTILITY ---------- High-capacity Storage Unit Visual Processing Unit Salvage Targeting Computer > --- WEAPON ----------- High-powered Shotgun Shock Bomb Launcher Rocket Launcher > --- INVENTORY -------- Light Nuclear Core Terrain Scan Processor Seismic Detector Targeting Computer Targeting Computer Targeting Computer Light Armor Plating System Restoration Module Shotgun Shotgun Shotgun [Rating: 24] Favorites ----------- Power Improved Ion Engine Engine Improved Ion Engine Power Core Light Nuclear Core Propulsion Compact Wheel Leg Aluminum Leg Wheel Compact Wheel Utility High-capacity Storage Unit Device Seismic Detector Storage High-capacity Storage Unit Processor Salvage Targeting Computer Protection Light Armor Plating Weapon Heavy Assault Rifle Energy Gun Medium Laser Ballistic Gun Heavy Assault Rifle Launcher Shock Bomb Launcher Build | -11 -10 -9 -8 ------- Run | Yrd Mat Mat Mat Slots Evolved 4 | . . 2 2 Power . | . . . . Propulsion 2 | . . 1 1 Utility 1 | . . 1 . Weapon 1 | . . . 1 Parts Attached 45 | 9 2 17 17 Power 9 | 2 . 4 3 Engine 6 | 2 . 4 . Core 3 | . . . 3 Reactor . | . . . . Propulsion 12 | 2 . 5 5 Treads . | . . . . Leg 2 | . . . 2 Wheel 10 | 2 . 5 3 Hover . | . . . . Flight . | . . . . Utility 9 | 3 2 3 1 Device 4 | 2 1 1 . Storage 2 | 1 1 . . Processor 2 | . . 2 . Hackware . | . . . . Protection 1 | . . . 1 Artifact . | . . . . Weapon 15 | 2 . 5 8 Energy Gun 4 | 2 . 2 . Energy Cannon . | . . . . Ballistic Gun 7 | . . 2 5 Ballistic Cannon . | . . . . Launcher 4 | . . 1 3 Special Weapon . | . . . . Impact Weapon . | . . . . Slashing Weapon . | . . . . Piercing Weapon . | . . . . Special Melee Weapon . | . . . . Unidentified Prototypes . | . . . . Corrupted Parts 1 | . . . 1 System Corruption 7 | . . . 7 Parts Lost 32 | . 1 8 23 Power 5 | . . 2 3 Propulsion 11 | . . 3 8 Utility 4 | . 1 1 2 Weapon 12 | . . 2 10 Highest Loss Streak 12 | . 1 3 12 To Critical Strikes . | . . . . Average Backups 7 | 2 5 7 10 Power . | . 1 1 . Propulsion . | . 2 . . Utility 3 | . . 2 6 Weapon 2 | . 1 3 2 Tool/Special . | . . . . Unused Backups 7 | . . 2 5 Power . | . . . . Propulsion 1 | . . 1 . Utility 5 | . . . 5 Weapon 1 | . . 1 . Tool/Special . | . . . . Average Slot Usage (%) 86 | . 99 83 87 Engine 8 | . 14 10 2 Core 1 | . . . 5 Leg 1 | . . . 4 Wheel 22 | . 28 20 24 Device 3 | . 13 3 . Storage 10 | . 14 11 9 Processor 15 | . . 16 17 Energy Gun 10 | . 28 12 . Ballistic Gun 9 | . . 7 17 Launcher 2 | . . . 6 Peak Build Rating 24 | 9 9 17 24 Average Rating 13 | 6 8 12 19 On Entrance 8 | . 9 7 16 Naked Turns . | . . . . Heaviest Build 58 | 14 49 55 58 Greatest Support 56 | 32 32 48 56 Greatest Overweight (x) 17 | 1 1 17 5 Average Overweight (x) 1 | . . 1 1 Largest Inventory Capacity 20 | 8 20 20 20 Average Capacity 19 | 7 19 20 20 Most Carried 13 | 5 6 13 12 Average Carried 7 | 2 5 7 10 Final Capacity 20 | 8 20 20 20 Final Carried 12 | 5 5 12 6 Class Distribution -------------------- 58% | Mutant 21% | Scavenger-Mutant 10% | Skirmisher 9% | Scavenger-Skirmisher Dominant Class ---------------- Mutant | -10/Materials Mutant | -9/Materials Skirmisher | -8/Materials Resources | -11 -10 -9 -8 ----------- Run | Yrd Mat Mat Mat Matter Collected 1168 | 290 10 295 573 Remotely . | . . . . Salvage Created 2245 | 85 124 747 1289 Parts 139 | 6 9 45 79 Haulers Intercepted 2 | . . . 2 Recyclers Shooed 4 | . . 1 3 Parts Field Recycled . | . . . . Retrieved Matter . | . . . . Parts Self-Destructed . | . . . . Prevented . | . . . . Kills | -11 -10 -9 -8 ------- Run | Yrd Mat Mat Mat Combat Hostiles Destroyed 40 | . 3 16 21 Guns 35 | . 3 16 16 AOE 5 | . . . 5 Classes Destroyed 11 | 2 1 4 4 Worker 4 | . . . 4 Builder 8 | . . 2 6 Tunneler 2 | 2 . . . Hauler 2 | . . . 2 Recycler 6 | 1 . 2 3 Watcher 3 | . . 1 2 Swarmer 10 | . . 7 3 Grunt 21 | . 3 5 13 Brawler 1 | . . . 1 Sentry 7 | . . 4 3 Hunter 1 | . . . 1 Best Kill Streak 6 | 2 2 3 6 Combat Bots Only 4 | . 2 3 4 Max Kills in Single Turn 2 | 1 1 2 2 Gunslinging 1 | . . 1 1 Exploded 1 | . . . 1 Melee . | . . . . Uniques/NPCs Destroyed . | . . . . Combat | -11 -10 -9 -8 -------- Run | Yrd Mat Mat Mat Hostile Shots Fired 336 | . 18 131 187 Missed 87 | . 4 31 52 Hits 249 | . 14 100 135 Projectile 249 | . 14 100 135 Critical Strikes 7 | . . . 7 Damage Taken 3744 | . 163 1019 2562 Core 917 | . 83 274 560 Absorbed by Shields 79 | . . 79 . Core Remaining (%) 65 | 100 66 31 . Volleys Fired 173 | 11 9 79 74 Largest 3 | 2 2 2 3 Hottest 106 | 90 90 106 79 Shots Fired 299 | 22 18 138 121 Gun 270 | 22 18 138 92 Cannon . | . . . . Launcher 29 | . . . 29 Special . | . . . . Kinetic 141 | . . 49 92 Thermal 129 | 22 18 89 . Explosive 10 | . . . 10 Electromagnetic 19 | . . . 19 Robot Hit Streak 19 | 13 7 7 19 Robot Miss Streak 5 | 1 1 5 5 Penetration Max . | . . . . Secondary Targets 4 | . . 3 1 Max Gunslinging Chain 1 | . . 1 1 Shots Hit Robots 204 | 18 12 83 91 Core Hits 122 | 3 6 30 83 Critical Kills 1 | . . . 1 Critical Parts Destroyed . | . . . . Critical Strikes 5 | 1 . 3 1 Burn 4 | 1 . 3 . Destroy 1 | . . . 1 Melee Attacks . | . . . . Impact . | . . . . Slashing . | . . . . Piercing . | . . . . Sneak Attacks . | . . . . Combat Hostiles . | . . . . Follow-up Attacks . | . . . . Damage Inflicted 4382 | 213 134 1244 2791 Guns 2819 | 213 134 1243 1229 Cannons . | . . . . Explosions 1562 | . . . 1562 Melee . | . . . . Ramming 1 | . . 1 . Kinetic 1710 | . . 481 1229 Thermal 1212 | 213 134 762 103 Explosive 735 | . . . 735 Electromagnetic 724 | . . . 724 Impact . | . . . . Slashing . | . . . . Piercing . | . . . . Highest Corruption 10 | . . . 10 Average Corruption 6 | . . . 6 Corruption Purged . | . . . . Corruption Blocked . | . . . . Effects 12 | . . . 12 Message Errors 2 | . . . 2 Heat Flow Errors 1 | . . . 1 Energy Discharges 3 | . . . 3 Data Loss (minor) 3 | . . . 3 Data Loss (major) 1 | . . . 1 Alerts 1 | . . . 1 Weapon Failures 1 | . . . 1 Overload Shots . | . . . . Overflow Damage 32 | . . . 32 Projectiles . | . . . . Explosions 32 | . . . 32 Melee . | . . . . Knockbacks . | . . . . Impact . | . . . . Kinetic . | . . . . Secondary . | . . . . Self-Inflicted Damage 10 | . . . 10 Shots 1 | . . . 1 Rammed 1 | . . 1 . Targets Rammed 1 | . . 1 . Kicked . | . . . . Crushed . | . . . . Highest Temperature 303 | 120 192 303 164 Average Temperature 56 | 54 78 64 16 Received Heat Transfer 1188 | . 87 246 855 Effects 3 | . . 3 . Interference 3 | . . 3 . Siege Activations . | . . . . Martial Activations . | . . . . Shielding Activations . | . . . . Robots Disrupted . | . . . . Combat Hostiles . | . . . . Robots Corrupted . | . . . . Combat Hostiles . | . . . . Parts Fried 3 | . . . 3 Impact Corruptions . | . . . . Robots Melted 1 | 1 . . . Combat Hostiles . | . . . . Parts Melted 5 | 1 . 4 . Heat Transferred 3240 | 644 336 2160 100 Parts Sabotaged . | . . . . Parts Stolen . | . . . . Parts Stripped . | . . . . Power Chain Reactions 3 | . . . 3 Alert | -11 -10 -9 -8 ------- Run | Yrd Mat Mat Mat Maximum Alert Level 1 | . . . 1 Low Security (%) 82 | 100 100 100 35 Level 1 17 | . . . 64 Level 2 . | . . . . Level 3 . | . . . . Level 4 . | . . . . Level 5 . | . . . . High Security . | . . . . Max Security . | . . . . Peak Influence 309 | 5 50 75 309 Initial 7 | . . . 7 Average 71 | . 9 23 205 Influence Increases 1354 | 15 70 489 780 Destroy 0b10 Robot/C 800 | . 60 320 420 Destroy 0b10 Robot/NC 125 | 15 . 25 85 Destroy Leader 180 | . 10 82 88 Disable Machine 45 | . . 15 30 Destroy Structure 99 | . . 2 97 Lose Combat Pursuer 105 | . . 45 60 Influence Decreases 1094 | 15 70 471 538 Entered New Map 11 | . . . 11 Time Decay 799 | 15 70 417 297 Lost Part 284 | . . 54 230 Squads Dispatched 7 | . 2 1 4 Investigation . | . . . . Extermination . | . . . . Reinforcement 7 | . 2 1 4 Assault . | . . . . Garrison . | . . . . Intercept . | . . . . Searches Triggered . | . . . . Construction Impeded 3 | . . . 3 Haulers Reinforced . | . . . . Active Scanning Responses . | . . . . Cargo Convoy Interrupts . | . . . . Stealth | -11 -10 -9 -8 --------- Run | Yrd Mat Mat Mat Distress Signals 6 | . 1 3 2 Communications Jammed . | . . . . Distress Signals . | . . . . Times Spotted 78 | . 9 28 41 Peak Tracking Total 10 | . 4 5 10 Tactical Retreats 4 | . . 2 2 Traps | -11 -10 -9 -8 ------- Run | Yrd Mat Mat Mat Traps Triggered . | . . . . Indirectly . | . . . . Trap Hack Attempts . | . . . . Triggered . | . . . . Disarmed . | . . . . Reprogrammed . | . . . . Reused . | . . . . Traps Extracted . | . . . . Installed . | . . . . Triggered . | . . . . Machines | -11 -10 -9 -8 ---------- Run | Yrd Mat Mat Mat Machines Disabled 3 | . . 1 2 Max in Single Turn 1 | . . 1 1 Machines Repaired . | . . . . Machines Dismantled . | . . . . Machines Sabotaged . | . . . . Overloaded Fab Kills . | . . . . Hacking | -11 -10 -9 -8 --------- Run | Yrd Mat Mat Mat Machines Accessed 2 | . . 1 1 Terminals . | . . . . Fabricators . | . . . . Repair Stations . | . . . . Recycling Units 2 | . . 1 1 Scanalyzers . | . . . . Garrison Access . | . . . . Total Hacks 3 | . . 2 1 Successful 2 | . . 1 1 Failed 1 | . . 1 . Catastrophic . | . . . . Database Lockouts . | . . . . Manual . | . . . . Terminals . | . . . . Fabricators . | . . . . Repair Stations . | . . . . Recycling Units 3 | . . 2 1 Scanalyzers . | . . . . Garrison Access . | . . . . Terminal Hacks . | . . . . Fabricator Hacks . | . . . . Repair Station Hacks . | . . . . Recycling Unit Hacks 2 | . . 1 1 Report Inventory 2 | . . 1 1 Scanalyzer . | . . . . Garrison Access Hacks . | . . . . Unauthorized Hacks . | . . . . Terminals . | . . . . Fabricators . | . . . . Repair Stations . | . . . . Recycling Units . | . . . . Scanalyzers . | . . . . Garrison Access . | . . . . Data Cores Recovered . | . . . . Used . | . . . . Hacking Detections 1 | . . . 1 Full Trace Events . | . . . . Feedback Events . | . . . . Feedback Blocked . | . . . . Robot Schematics Acquired . | . . . . Robots Built . | . . . . Authchips . | . . . . Time . | . . . . Total Robot Build Rating . | . . . . Part Schematics Acquired . | . . . . Parts Built . | . . . . Authchips . | . . . . Time . | . . . . Total Part Build Rating . | . . . . Parts Repaired . | . . . . Time . | . . . . Parts Recycled . | . . . . Recycled Matter . | . . . . Retrieved Matter . | . . . . Retrieved Components . | . . . . Parts Scanalyzed . | . . . . Part Schematics Acquired . | . . . . Parts Damaged . | . . . . Bothacking | -11 -10 -9 -8 ------------ Run | Yrd Mat Mat Mat Used RIF Installer . | . . . . Robots Hacked . | . . . . Non-combat . | . . . . Combat . | . . . . Robot Hacks Applied . | . . . . Relay Couplers Released . | . . . . Fabnet Peak Effective % . | . . . . Robots Rewired . | . . . . Allies Hacked . | . . . . Hacks Repelled . | . . . . Allies | -11 -10 -9 -8 -------- Run | Yrd Mat Mat Mat Total Allies . | . . . . Largest Group . | . . . . Highest-Rated Group . | . . . . Highest-Rated Ally . | . . . . Total Orders . | . . . . Ally Attacks . | . . . . Total Damage . | . . . . Kills . | . . . . Allies Corrupted . | . . . . Allies Melted . | . . . . Intel | -11 -10 -9 -8 ------- Run | Yrd Mat Mat Mat Active Infowar (turns) 2577 | 89 267 1424 797 Optics 1743 | . . 946 797 Terrain 331 | 89 242 . . Seismic 503 | . 25 478 . Robot Analysis Total . | . . . . Derelict Logs Recovered . | . . . . Drone Launches . | . . . . Drone Recoveries . | . . . . Exploration | -11 -10 -9 -8 ------------- Run | Yrd Mat Mat Mat Turns Passed 2863 | 153 280 1633 797 Spaces Moved 1531 | 108 217 792 414 Core 76 | 27 . 49 . Treads . | . . . . Legs 40 | . . . 40 Wheels 1415 | 81 217 743 374 Hover . | . . . . Flight . | . . . . Fastest Speed 50 | 50 100 100 95 Average Speed 140 | 94 113 160 128 Slowest Speed 900 | 100 115 900 470 Overloaded Moves . | . . . . Propulsion Burnouts . | . . . . Robots Hopped . | . . . . Potential Cave-ins 5 | . . . 5 Cave-ins Triggered 1 | . . . 1 Exploration Rate (%) 33 | 6 37 58 34 Regions Visited 3 Branch Regions . Pre-discovered Areas . | . . . . Known Exits Taken . | . . . . Unknown Exits Taken 3 | 1 1 1 . Scrap Searched . | . . . . Spaces Dug . | . . . . Terrain Destroyed 120 | . . . 120 Melee . | . . . . Projectile . | . . . . AOE 120 | . . . 120 Terrain Rammed . | . . . . Walls Destroyed . | . . . . Machines Disabled . | . . . . Actions | -11 -10 -9 -8 --------- Run | Yrd Mat Mat Mat Total 1943 | 132 233 1015 563 Wait 142 | . 4 93 45 Move 1527 | 107 216 791 413 Hop . | . . . . Pick Up 28 | 4 1 19 4 Fast Attach 17 | 7 . 4 6 Attach 25 | . 1 10 14 Detach 8 | . . 4 4 Swap 9 | 2 1 5 1 Drop 12 | 1 1 9 1 Fire 173 | 11 9 79 74 Melee . | . . . . Ram 1 | . . 1 . Kick . | . . . . Crush . | . . . . Escape Stasis 1 | . . . 1 Rewire . | . . . . Trap . | . . . . Miscellaneous . | . . . . Route ------- -11/Scrapyard -10/Materials -9/Materials (discovered 3 exits: *Mat x3) -8/Materials History --------- Turn | Location | Event 4 | -11/Scrapyard | Discovered new exit (range 16) 154 | -11/Scrapyard | Entered Materials 314 | -10/Materials | Build established: Mutant 325 | -10/Materials | Discovered new exit (range 7) 434 | -10/Materials | Entered another Materials area 434 | -9/Materials | Evolved 2 slots: Propulsion x1, Utility x1 715 | -9/Materials | Discovered new exit (range 16) 1173 | -9/Materials | Discovered new exit (range 17) 1469 | -9/Materials | Lost 3 parts (2n1w) 1491 | -9/Materials | Core integrity fell below 50% 2038 | -9/Materials | Discovered new exit (range 11) 2067 | -9/Materials | Entered another Materials area 2067 | -8/Materials | Evolved 2 slots: Propulsion x1, Weapon x1 2310 | -8/Materials | Lost 5 parts (1p1n3w) 2573 | -8/Materials | Crushed by falling debris 2579 | -8/Materials | Build established: Skirmisher 2630 | -8/Materials | Lost 4 parts (1p2n1w) 2706 | -8/Materials | System corruption reached 10% 2768 | -8/Materials | Core integrity fell below 50% 2855 | -8/Materials | Core integrity fell below 20% 2864 | -8/Materials | Destroyed by G-47 Trooper with Particle Gun Last Messages --------------- 02824_ U-05 Engineer lays Concrete. 02824_ Hpw. Shotgun destroyed. 02824_ U-05 Engineer lays Concrete. 02826_ WNKQ &CO0%Q 02834_ S-10 Pest destroyed. 02836_ Aluminum Leg destroyed. 02838_ System corrupted: Shotgun jammed. 02842_ S-10 Pest destroyed. 02844_ System corrupted: Component data lost. 02846_ Lgt. Armor Plating destroyed. 02846_ Critical hit (Burn: +37). 02849_ Destroyed Flight Unit. 02851_ S-10 Pest destroyed. 02854_ Critical hit (Burn: +37). 02854_ Arm. Wheel destroyed. 02859_ G-47 Trooper destroyed. 02860_ Critical hit (Burn: +37). 02862_ Knocked back. 02864_ Shotgun destroyed. Map ----- +----------------------------------------------------+ | ??????????? # ####### ??????????????? | | ??????????? # % ??????????????? | | ?????????? + % ??????????????? | | ?????????"" # ??????????????? | | ??????? """ # % ###### ??????????????? | | ??????? """ ???????? ???????????????? | | ???????? ?# ##????????? ???????????????? | | ??############# # #?????????????????????????? | | ??# #??????????????????????????? | | ??# " #??????????????????????????? | | ??# " #???????????????????????????? | | ??# # ###?????????????????????????? | | ??# #% # ?????????????????????????? | | ??##############% % # "?????????????????????????? | | ????????##### #; # """" ???????!?????????????? | | ??????# // # % # """" #?????]!?????????????? | | ??????# // """; # #???? ! ????????????? | | ??????# """#[% # """" #??? ?????????????? | | ??????# """#%! # """" #?? * ??????????????? | | ??????# %/ = # """" #?! ????????????????? | | ??????# """# [ # g # ??????????????? | | ??????# """"%[= uH= " " +! ??????????????? | | ??????# """#=[ #g"""" # ! ??????????????? | | ??????? ?? #=%* #%%" #????????????????????? | | ?????????######"== #=[= g #????????????????????? | | ??????????????## #[g!@g #????????????????????? | | ???????????????# ########????????????????????? | | ???????????????# #???????????????????????????? | | ???????????????# #???????????????????????????? | | ???????????????# #???????????????????????????? | | ???????????????# #???????????????????????????? | | ???????????????# #???????????????????????????? | | ???????????????# ????????????????????????????? | | ???????????????# ????????????????????????????? | | ???????????????# ????????????????????????????? | | ???????????????# ????????????????????????????? | | ???????????????? ????????????????????????????? | | ?????????????????? ????????????????????????????? | | ?????????????????????????????????????????????????? | | ?????????????????????????????????????????????????? | | ?????????????????????????????????????????????????? | | ?????????????????????????????????????????????????? | | ?????????????????????????????????????????????????? | | ?????????????????????????????????????????????????? | | ?????????????????????????????????????????????????? | | ?????????????????????????????????????????????????? | | | | | | | | | +----------------------------------------------------+ Best States ------------- Heat Dissipation 31 Energy Generation 14 Energy Capacity 265 Matter Stores 300 Matter Capacity 300 Sight Range 18 Terrain Scan Range 16 Terrain Scan Density 10 Armor Coverage 150 Evasion (%) 50 Salvage Targeting 1 Item Schematics ----------------- None Robot Schematics ------------------ None Fabricated ------------ Nothing Repaired ---------- Nothing Alien Tech Used ----------------- None Achievements -------------- None Challenges ------------ None Game ------ Seed DecoderArcRailgun Manual? 0 Play Time 00:36:36 Cumulative 9.1 hours Start 2025.05.17 @ 14:17:00 End 2025.05.17 @ 14:49:37 Sessions 1 Manual Loads 0 Difficulty Rogue Special Mode None Game No. 13 Rogue 13 Adventurer 0 Explorer 0 Win Type - Total 0 Types 0/0/0/0/0/0/0/0/0/0 Lore% 5 Gallery% 10 Achievement% 9 Wizard Run 0 Options --------- Layout 1 ASCII 0 Keyboard 1 Movement Vi Keybinds 0 Fullscreen 1 Font 24/Smallcaps Map View 50x35 Zoom Use 0% Tactical HUD 1 Map Filters NONE Filters NONE Steam 1 RUN: e5c082f1-3429-422c-95de-607c1b5b1992